Workbook

Sheet DAX 30
C1: =TODAY() -> 2021-02-19 | E1: =NOW() -> 2021-02-19T17:59:51.410
B2: DAX 30
B3: Datum | C3: Uhrzeit | D3: Symbol | E3: longName | F3: Kurs | G3: Schlusskurs gestern | H3: Differenz zum Vortag | J3: Tageshoch | K3: Tagestief | L3: Volumen | M3: 50-Wochen Tief | N3: Kurs +/- | O3: 50-Wochen Hoch | P3: Kurs +/- | Q3: 200-Tage SMA | R3: Kurs +/- | S3: Jährliche Dividende | T3: Dividenden Rendite | U3: trailingPE | V3: forwardPE
B4: =yahoodata($D4,"regularMarketTime") -> 2021-02-19T17:43:45 | C4: 44246.73872 | D4: DAI.DE | E4: Daimler AG | F4: =yahoodata($D4,"regularMarketPrice") -> 67.22 | G4: =yahoodata($D4,"regularMarketPreviousClose") -> 66.89 | H4: =SUM(F4-G4) -> 0.33 | I4: =yahoodata($D4,"regularMarketChangePercent")/100 -> 0.0049335003 | J4: =yahoodata(D4,"regularMarketDayHigh") -> 67.61 | K4: =yahoodata($D4,"regularMarketDayLow") -> 66.33 | L4: =yahoodata($D4,"regularMarketVolume") -> 3338349 | M4: =yahoodata($D4,"fiftyTwoWeekLow") -> 21.015 | N4: =F4*100/M4 -> 319.8667618 | O4: =yahoodata($D4,"fiftyTwoWeekHigh") -> 67.61 | P4: =(G4*100/O4)-100 -> -1.064931223 | Q4: =yahoodata($D4,"twoHundredDayAverage") -> 51.8766 | R4: =(G4*100/Q4)-100 -> 28.94060135 | S4: =yahoodata($D4,"trailingAnnualDividendRate") -> 0.9 | T4: =yahoodata($D4,"trailingAnnualDividendYield") -> 0.013454926 | U4: =yahoodata($D4,U$3) -> 2317.9312 | V4: 8.069628
B5: 2021-02-19T17:39:58 | C5: 44246.73609 | D5: 1COV.DE | E5: Covestro AG | F5: 58.66 | G5: 57.98 | H5: =SUM(F5-G5) -> 0.68 | I5: 0.011728187 | J5: 58.84 | K5: 57.78 | L5: 751030 | M5: 23.54 | N5: 249.1928632 | O5: 59.98 | P5: -3.334444815 | Q5: 46.92118 | R5: 23.56892985 | S5: 1.2 | T5: 0.020696793 | U5: 58.66 | V5: 6.1040583
B6: 2021-02-19T17:36:42 | C6: 44246.73382 | D6: BMW.DE | E6: Bayerische Motoren Werke Aktiengesellschaft | F6: 71.58 | G6: 71.03 | H6: 0.55 | I6: 0.00774325 | J6: 72 | K6: 70.66 | L6: 1210457 | M6: 36.595 | N6: 195.6004919 | O6: 77.31 | P6: -8.123140603 | Q6: 66.651665 | R6: 6.568980685 | S6: 2.5 | T6: 0.035196397 | U6: 13.518414 | V6: 6.466125
B7: 2021-02-19T17:35:16 | C7: 44246.73282 | D7: MRK.DE | E7: MERCK Kommanditgesellschaft auf Aktien | F7: 139 | G7: 139.3 | H7: -0.3 | I7: -0.0021536471 | J7: 140.7 | K7: 138.25 | L7: 357959 | M7: 76.22 | N7: 182.3668329 | O7: 149.95 | P7: -7.102367456 | Q7: 130.58368 | R7: 6.674892299 | S7: 1.3 | T7: 0.009332376 | U7: 32.385834 | V7: 0
B8: 2021-02-19T17:36:33 | C8: 44246.73372 | D8: DBK.DE | E8: Deutsche Bank AG | F8: 9.56 | G8: 9.2 | H8: 0.36 | I8: 0.039130502 | J8: 9.56 | K8: 9.268 | L8: 13453163 | M8: 4.4485 | N8: 214.9039002 | O8: 10.086 | P8: -8.784453698 | Q8: 8.491951 | R8: 8.337883721 | S8: 0.11 | T8: 0.011956522 | U8: 0 | V8: 0
B9: 2021-02-19T17:35:14 | C9: 44246.7328 | D9: DWNI.DE | E9: Deutsche Wohnen SE | F9: 39.86 | G9: 40.17 | H9: -0.31 | I9: -0.0077171415 | J9: 40.47 | K9: 39.85 | L9: 724355 | M9: 27.66 | N9: 144.1070137 | O9: 46.97 | P9: -14.47732595 | Q9: 43.014446 | R9: -6.612769115 | S9: 0.9 | T9: 0.02240478 | U9: 11.873696 | V9: 27.680555
B10: 2021-02-19T17:35:05 | C10: 44246.7327 | D10: FME.DE | E10: Fresenius Medical Care AG & Co. KGaA | F10: 59.1 | G10: 59.9 | H10: -0.8 | I10: -0.013355644 | J10: 60.08 | K10: 59.08 | L10: 801121 | M10: 53.5 | N10: 110.4672897 | O10: 79.96 | P10: -25.08754377 | Q10: 69.42903 | R10: -13.72484968 | S10: 1.2 | T10: 0.02003339 | U10: 13.153794 | V10: 13.37104
B11: 2021-02-19T17:43:23 | C11: 44246.73846 | D11: DTE.DE | E11: Deutsche Telekom AG | F11: 14.83 | G11: 14.7 | H11: 0.13 | I11: 0.008843545 | J11: 14.89 | K11: 14.71 | L11: 9621497 | M11: 10.406 | N11: 142.5139343 | O11: 16.634 | P11: -11.62678851 | Q11: 14.756181 | R11: -0.380728591 | S11: 0.6 | T11: 0.04081633 | U11: 22.401814 | V11: 13.36036
B12: 2021-02-19T17:37:17 | C12: 44246.73422 | D12: SIE.DE | E12: Siemens Aktiengesellschaft | F12: 132.48 | G12: 129.56 | H12: 2.92 | I12: 0.022537806 | J12: 132.72 | K12: 129.76 | L12: 1588249 | M12: 58.77 | N12: 225.4211332 | O12: 137.52 | P12: -5.788248982 | Q12: 116.68542 | R12: 11.03358072 | S12: 3.5 | T12: 0.02701451 | U12: 24.93037 | V12: 0
B13: 2021-02-19T17:35:28 | C13: 44246.73296 | D13: VNA.DE | E13: Vonovia SE | F13: 53.82 | G13: 53.98 | H13: -0.16 | I13: -0.002964058 | J13: 54.42 | K13: 53.8 | L13: 1269770 | M13: 36.71 | N13: 146.6085535 | O13: 62.74 | P13: -13.96238444 | Q13: 57.63278 | R13: -6.338024992 | S13: 1.57 | T13: 0.029084848 | U13: 9.704291 | V13: 23.4
B14: 2021-02-19T17:37:34 | C14: 44246.73442 | D14: BAS.DE | E14: BASF SE | F14: 68 | G14: 67.03 | H14: 0.97 | I14: 0.014471151 | J14: 68.3 | K14: 66.95 | L14: 2716801 | M14: 37.355 | N14: 182.0372105 | O14: 69.24 | P14: -3.191796649 | Q14: 57.901703 | R14: 15.76516152 | S14: 3.3 | T14: 0.049231686 | U14: 0 | V14: 0
B15: 2021-02-19T17:37:17 | C15: 44246.73422 | D15: FRE.DE | E15: Fresenius SE & Co. KGaA | F15: 36 | G15: 35.95 | H15: 0.05 | I15: 0.0013907993 | J15: 36.22 | K15: 35.56 | L15: 1655155 | M15: 24.25 | N15: 148.4536082 | O15: 50.4 | P15: -28.67063492 | Q15: 37.679653 | R15: -4.590416478 | S15: 0.84 | T15: 0.023365784 | U15: 11.073516 | V15: 0
B16: 2021-02-19T17:38:28 | C16: 44246.73505 | D16: LIN.DE | E16: Linde plc | F16: 206 | G16: 206.5 | H16: -0.5 | I16: -0.0024213076 | J16: 207.4 | K16: 205 | L16: 983266 | M16: 130.45 | N16: 157.9149099 | O16: 226.4 | P16: -8.78975265 | Q16: 208.29897 | R16: -0.8636480536 | S16: 3.852 | T16: 0.018653752 | U16: 43.75531 | V16: 0
B17: 2021-02-19T17:35:07 | C17: 44246.73272 | D17: RWE.DE | E17: RWE AG | F17: 32.47 | G17: 32.44 | H17: 0.03 | I17: 0.0009248642 | J17: 32.62 | K17: 31.52 | L17: 5484770 | M17: 20.05 | N17: 161.9451372 | O17: 38.65 | P17: -16.06727038 | Q17: 33.88125 | R17: -4.253827707 | S17: 0.8 | T17: 0.024660913 | U17: 20.459988 | V17: 0
B18: 2021-02-19T17:36:53 | C18: 44246.73395 | D18: BAYN.DE | E18: Bayer Aktiengesellschaft | F18: 53.91 | G18: 53.11 | H18: 0.8 | I18: 0.015063062 | J18: 53.97 | K18: 52.57 | L18: 2910537 | M18: 39.91 | N18: 135.0789276 | O18: 74.64 | P18: -28.84512326 | Q18: 50.638126 | R18: 4.881448417 | S18: 2.8 | T18: 0.052720767 | U18: 0 | V18: 7.197597
B19: 2021-02-19T17:35:31 | C19: 44246.733 | D19: ALV.DE | E19: Allianz SE | F19: 195.38 | G19: 194.86 | H19: 0.52 | I19: 0.0026686046 | J19: 198.34 | K19: 195.14 | L19: 1257538 | M19: 117.1 | N19: 166.8488471 | O19: 232.6 | P19: -16.22527945 | Q19: 185.16716 | R19: 5.234643119 | S19: 9.6 | T19: 0.04926614 | U19: 11.796885 | V19: 10.595445
B20: 2021-02-19T17:37:53 | C20: 44246.73464 | D20: HEN3.DE | E20: Henkel AG & Co. KGaA | F20: 84.78 | G20: 85.18 | H20: -0.4 | I20: -0.004695956 | J20: 85.54 | K20: 84.66 | L20: 344864 | M20: 62.24 | N20: 136.214653 | O20: 95.14 | P20: -10.46878285 | Q20: 88.67 | R20: -3.935942258 | S20: 1.85 | T20: 0.021718714 | U20: 20.764143 | V20: 13.246875
B21: 2021-02-19T17:35:20 | C21: 44246.73287 | D21: EOAN.DE | E21: E.ON SE | F21: 8.684 | G21: 8.716 | H21: -0.032 | I21: -0.0036713618 | J21: 8.746 | K21: 8.654 | L21: 8030195 | M21: 7.601 | N21: 114.2481252 | O21: 11.382 | P21: -23.42294852 | Q21: 9.319263 | R21: -6.47329086 | S21: 0.46 | T21: 0.052776508 | U21: 48.513966 | V21: 13.56875
B22: 2021-02-19T17:35:04 | C22: 44246.73269 | D22: MTX.DE | E22: MULTI-UNITS LUXEMBOURG - Lyxor Euro Government Bond (DR) UCITS ETF - Acc | F22: 191.55 | G22: 188.9 | H22: 2.65 | I22: 0.014028636 | J22: 193.1 | K22: 185.95 | L22: 308684 | M22: 97.76 | N22: 195.9390344 | O22: 262.5 | P22: -28.03809524 | Q22: 179.09756 | R22: 5.473240395 | S22: 3.4 | T22: 0.017998943 | U22: 42.852352 | V22: 19.808687
B23: 2021-02-19T17:35:20 | C23: 44246.73287 | D23: VOW3.DE | E23: Volkswagen AG | F23: 170.54 | G23: 168.86 | H23: 1.68 | I23: 0.009949027 | J23: 173.66 | K23: 169.46 | L23: 2075548 | M23: 79.38 | N23: 214.8400101 | O23: 173.66 | P23: -2.764021652 | Q23: 145.75626 | R23: 15.85094184 | S23: 4.86 | T23: 0.028781239 | U23: 21.03614 | V23: 6.0176425
B24: 2021-02-19T17:36:53 | C24: 44246.73395 | D24: MUV2.DE | E24: Münchener Rückversicherungs-Gesellschaft Aktiengesellschaft in München | F24: 236 | G24: 233.6 | H24: 2.4 | I24: 0.010273947 | J24: 237 | K24: 234.6 | L24: 339392 | M24: 141.1 | N24: 167.2572644 | O24: 275.9 | P24: -15.3316419 | Q24: 232.04478 | R24: 0.6702240835 | S24: 9.8 | T24: 0.041952055 | U24: 27.245441 | V24: 14.399024
B25: 2021-02-19T17:35:22 | C25: 44246.73289 | D25: IFX.DE | E25: Infineon Technologies AG | F25: 36.6 | G25: 35.21 | H25: 1.39 | I25: 0.039477403 | J25: 36.775 | K25: 35.535 | L25: 4808068 | M25: 10.132 | N25: 361.231741 | O25: 36.775 | P25: -4.25560843 | Q25: 27.972881 | R25: 25.87191144 | S25: 0.22 | T25: 0.006248225 | U25: 125.34246 | V25: 32.389378
B26: 2021-02-19T17:36:53 | C26: 44246.73395 | D26: ADS.DE | E26: adidas AG | F26: 295.6 | G26: 288.8 | H26: 6.8 | I26: 0.02354577 | J26: 297.2 | K26: 289.9 | L26: 498887 | M26: 162.2 | N26: 182.244143 | O26: 306.7 | P26: -5.836322139 | Q26: 276.5771 | R26: 4.419346359 | S26: 3.85 | T26: 0.013331025 | U26: 128.97034 | V26: 37.46515
B27: 2021-02-19T17:35:06 | C27: 44246.73271 | D27: DPW.DE | E27: Deutsche Post AG | F27: 42.41 | G27: 42.16 | H27: 0.25 | I27: 0.0059297913 | J27: 42.5 | K27: 42.09 | L27: 2203994 | M27: 19.1 | N27: 222.0418848 | O27: 43.84 | P27: -3.832116788 | Q27: 39.95972 | R27: 5.506244789 | S27: 1.15 | T27: 0.02727704 | U27: 21.068058 | V27: 18.848888
B28: 2021-02-19T17:35:14 | C28: 44246.7328 | D28: HEI.DE | E28: HeidelbergCement AG | F28: 65.6 | G28: 63.84 | H28: 1.76 | I28: 0.027568896 | J28: 65.76 | K28: 64.04 | L28: 647750 | M28: 29 | N28: 226.2068966 | O28: 69.7 | P28: -8.407460545 | Q28: 57.447083 | R28: 11.1283579 | S28: 0.6 | T28: 0.009398497 | U28: 0 | V28: 0
B29: 2021-02-19T17:35:18 | C29: 44246.73285 | D29: DHER.DE | E29: Delivery Hero SE | F29: 121.7 | G29: 121.8 | H29: -0.1 | I29: -0.00082106814 | J29: 124.5 | K29: 121.1 | L29: 650226 | M29: 50.18 | N29: 242.5269031 | O29: 145.4 | P29: -16.23108666 | Q29: 108.02632 | R29: 12.75030011 | S29: 0 | T29: 0 | U29: 0 | V29: 0
B30: 2021-02-19T17:35:53 | C30: 44246.73325 | D30: CON.DE | E30: Continental Aktiengesellschaft | F30: 120.35 | G30: 117.75 | H30: 2.6 | I30: 0.022080667 | J30: 121 | K30: 116.75 | L30: 516435 | M30: 51.45 | N30: 233.9164237 | O30: 126.55 | P30: -6.953773212 | Q30: 105.39882 | R30: 11.71851829 | S30: 3 | T30: 0.025477707 | U30: 0 | V30: 6.8968477
B31: 2021-02-19T17:35:02 | C31: 44246.73266 | D31: DB1.DE | E31: Deutsche Boerse AG | F31: 136.7 | G31: 136 | H31: 0.7 | I31: 0.0051470363 | J31: 137.85 | K31: 135.75 | L31: 689876 | M31: 92.92 | N31: 147.1157985 | O31: 170.15 | P31: -20.07052601 | Q31: 142.22917 | R31: -4.379671202 | S31: 3 | T31: 0.022058824 | U31: 23.052277 | V31: 22.669983
B32: 2021-02-19T17:44:10 | C32: 44246.739 | D32: SAP.DE | E32: SAP SE | F32: 104.94 | G32: 106.24 | H32: -1.3 | I32: -0.012236403 | J32: 106.46 | K32: 104.76 | L32: 3084644 | M32: 82.13 | N32: 127.7730427 | O32: 143.32 | P32: -25.87217416 | Q32: 116.087364 | R32: -8.48271824 | S32: 1.58 | T32: 0.014871988 | U32: 24.12414 | V32: 0
B33: 2021-02-19T17:35:22 | C33: 44246.73289 | D33: BEI.DE | E33: Beiersdorf Aktiengesellschaft | F33: 85.08 | G33: 86.6 | H33: -1.52 | I33: -0.017551925 | J33: 87.18 | K33: 85.08 | L33: 651383 | M33: 77.62 | N33: 109.610925 | O33: 107.5 | P33: -19.44186047 | Q33: 95.074165 | R33: -8.913215278 | S33: 0.7 | T33: 0.0080831405 | U33: 34.459293 | V33: 23.245901
B34: 2021-02-19T17:59:36 | C34: 44246.74972 | D34: AMZN | E34: Amazon | F34: 3312.685 | G34: 3328.23 | H34: =SUM(F34-G34) -> -15.545 | I34: -0.0046706274 | J34: =yahoodata(D34,"regularMarketDayHigh") -> 3333.5 | K34: 3307.0256 | L34: 1414194 | M34: 1626.03 | N34: =F34*100/M34 -> 203.728406 | O34: 3552.25 | P34: =(G34*100/O34)-100 -> -6.306425505 | Q34: 3208.3303 | R34: =(G34*100/Q34)-100 -> 3.73713704 | S34: 0 | T34: 0 | U34: 79.194 | V34: 49.987705
B35: 2021-02-19T17:58:54 | C35: 44246.74924 | D35: NFLX | E35: Netflix | F35: 541.67 | G35: 548.22 | H35: =SUM(F35-G35) -> -6.55 | I35: -0.011947737 | J35: =yahoodata(D35,"regularMarketDayHigh") -> 548.99 | K35: 540.5031 | L35: 1142098 | M35: 290.25 | N35: =F35*100/M35 -> 186.6218777 | O35: 593.29 | P35: =(G35*100/O35)-100 -> -7.596622225 | Q35: 510.82144 | R35: =(G35*100/Q35)-100 -> 7.321258873 | S35: 0 | T35: 0 | U35: 89.09046 | V35: 41.698997
B36: =yahoodata($D36,"regularMarketTime") -> 2021-02-19T17:59:35 | C36: 44246.74971 | D36: BA | E36: Boing | F36: 214.68 | G36: 208.48 | H36: 6.2 | I36: 0.029739048 | J36: 215.3498 | K36: 209.16 | L36: 5825713 | M36: 89 | N36: 241.2134831 | O36: 334.66 | P36: -37.70393833 | Q36: 188.24348 | R36: 10.75018375 | S36: 2.055 | T36: 0.009857061 | U36: =yahoodata($D36,U$3) -> 0 | V36: 39.977654

Sheet Tabelle3
